[Event "*** Titled Tuesday Blitz"]
[Site "Chess.com"]
[Date "2020.05.12"]
[Round "1"]
[White "crywolf1986"]
[Black "ajdemipopushi"]
[Result "1/2-1/2"]
[WhiteElo "2533"]
[BlackElo "2210"]
[TimeControl "180+1"]
[EndTime "10:10:41 PDT"]
[Termination "Game drawn by repetition"]

1. d3 {[%clk 0:02:58.9]} 1... c5 {[%clk 0:02:59.4]} 2. Nf3 {[%clk 0:02:58.4]}
2... g6 {[%clk 0:02:59.8]} 3. g3 {[%clk 0:02:57.4]} 3... Bg7 {[%clk 0:03:00.5]}
4. Bg2 {[%clk 0:02:57.7]} 4... Nc6 {[%clk 0:03:01.2]} 5. O-O {[%clk 0:02:57.8]}
5... e6 {[%clk 0:03:01.5]} 6. e4 {[%clk 0:02:58.2]} 6... Nge7 {[%clk 0:03:01.9]}
7. Nbd2 {[%clk 0:02:58.4]} 7... O-O {[%clk 0:03:02]} 8. Re1 {[%clk 0:02:58.5]}
8... d6 {[%clk 0:03:01.6]} 9. a3 {[%clk 0:02:57.7]} 9... Rb8 {[%clk 0:02:59.6]}
10. Rb1 {[%clk 0:02:58]} 10... b6 {[%clk 0:02:59.9]} 11. c3 {[%clk 0:02:57.8]}
11... Bb7 {[%clk 0:02:59.7]} 12. Qc2 {[%clk 0:02:57.3]} 12... Qd7 {[%clk
0:02:59.5]} 13. b4 {[%clk 0:02:55.2]} 13... Rbc8 {[%clk 0:02:57.4]} 14. b5
{[%clk 0:02:54.9]} 14... Ne5 {[%clk 0:02:45]} 15. a4 {[%clk 0:02:48.3]} 15...
Rfd8 {[%clk 0:02:40.9]} 16. Bb2 {[%clk 0:02:45.6]} 16... h6 {[%clk 0:01:51.5]}
17. c4 {[%clk 0:02:39]} 17... Nxf3+ {[%clk 0:01:49.2]} 18. Nxf3 {[%clk
0:02:37.5]} 18... e5 {[%clk 0:01:40.2]} 19. Rf1 {[%clk 0:02:27.6]} 19... Rf8
{[%clk 0:01:39.7]} 20. Nh4 {[%clk 0:02:23.2]} 20... g5 {[%clk 0:01:23.4]} 21.
Nf3 {[%clk 0:02:20.5]} 21... f5 {[%clk 0:01:23.3]} 22. exf5 {[%clk 0:02:19.7]}
22... Nxf5 {[%clk 0:01:21.2]} 23. Nd2 {[%clk 0:02:18.4]} 23... Bxg2 {[%clk
0:01:19.9]} 24. Kxg2 {[%clk 0:02:19.3]} 24... Qb7+ {[%clk 0:01:15.6]} 25. Ne4
{[%clk 0:02:18.5]} 25... d5 {[%clk 0:01:14.2]} 26. cxd5 {[%clk 0:02:17.2]} 26...
Qxd5 {[%clk 0:01:14.4]} 27. Qc4 {[%clk 0:02:16.3]} 27... Rcd8 {[%clk 0:01:14.1]}
28. Rfe1 {[%clk 0:02:09.4]} 28... Kh7 {[%clk 0:01:11.4]} 29. Qxd5 {[%clk
0:02:08.7]} 29... Rxd5 {[%clk 0:01:11.2]} 30. Nd2 {[%clk 0:02:01.3]} 30... Rxd3
{[%clk 0:01:07.2]} 31. Nc4 {[%clk 0:02:01.2]} 31... Nd4 {[%clk 0:01:01.8]} 32.
Nxe5 {[%clk 0:01:59.8]} 32... Bxe5 {[%clk 0:01:01.2]} 33. Rxe5 {[%clk
0:01:59.1]} 33... Rd2 {[%clk 0:01:00.2]} 34. Bxd4 {[%clk 0:01:59.4]} 34... cxd4
{[%clk 0:00:57.8]} 35. Rf1 {[%clk 0:01:59.5]} 35... Rf7 {[%clk 0:00:57.9]} 36.
Rd5 {[%clk 0:01:54.7]} 36... Kg6 {[%clk 0:00:57.8]} 37. g4 {[%clk 0:01:51.4]}
37... h5 {[%clk 0:00:55.2]} 38. gxh5+ {[%clk 0:01:50.2]} 38... Kxh5 {[%clk
0:00:54.4]} 39. Kg3 {[%clk 0:01:50.1]} 39... Rd3+ {[%clk 0:00:49.7]} 40. f3
{[%clk 0:01:49.6]} 40... Rf6 {[%clk 0:00:47.5]} 41. h4 {[%clk 0:01:48.6]} 41...
Ra3 {[%clk 0:00:29.1]} 42. hxg5 {[%clk 0:01:45]} 42... Rf7 {[%clk 0:00:28.2]}
43. Rxd4 {[%clk 0:01:37.3]} 43... Kxg5 {[%clk 0:00:27.2]} 44. Rg4+ {[%clk
0:01:37.6]} 44... Kf5 {[%clk 0:00:23.7]} 45. Rf4+ {[%clk 0:01:36.7]} 45... Kg6
{[%clk 0:00:23.6]} 46. Rg4+ {[%clk 0:01:33.8]} 46... Kf5 {[%clk 0:00:23.6]} 47.
Re1 {[%clk 0:01:32.5]} 47... Rf6 {[%clk 0:00:22.5]} 48. Ree4 {[%clk 0:01:31.8]}
48... Ra1 {[%clk 0:00:18.1]} 49. Ref4+ {[%clk 0:01:27.7]} 49... Ke6 {[%clk
0:00:18.2]} 50. Rxf6+ {[%clk 0:01:27]} 50... Kxf6 {[%clk 0:00:18.3]} 51. Re4
{[%clk 0:01:27.1]} 51... Kf5 {[%clk 0:00:17.5]} 52. Rd4 {[%clk 0:01:25.5]} 52...
Ra3 {[%clk 0:00:17.4]} 53. Rh4 {[%clk 0:01:25.2]} 53... Kg5 {[%clk 0:00:17.1]}
54. Rb4 {[%clk 0:01:24.3]} 54... Kf5 {[%clk 0:00:16.9]} 55. Rc4 {[%clk
0:01:24.2]} 55... Kg5 {[%clk 0:00:15.7]} 56. Kf2 {[%clk 0:01:23.4]} 56... Kf5
{[%clk 0:00:15]} 57. Rd4 {[%clk 0:01:20.2]} 57... Ra2+ {[%clk 0:00:15.3]} 58.
Ke3 {[%clk 0:01:20.4]} 58... Ra3+ {[%clk 0:00:15.7]} 59. Ke2 {[%clk 0:01:20.7]}
59... Ra2+ {[%clk 0:00:16.3]} 60. Kd3 {[%clk 0:01:19.7]} 60... Ra3+ {[%clk
0:00:16.6]} 61. Kc4 {[%clk 0:01:20.1]} 61... Ke5 {[%clk 0:00:16.6]} 62. Re4+
{[%clk 0:01:18.7]} 62... Kd6 {[%clk 0:00:14.9]} 63. Kb4 {[%clk 0:01:17.3]} 63...
Rxf3 {[%clk 0:00:14.7]} 64. Rd4+ {[%clk 0:01:15.6]} 64... Kc7 {[%clk 0:00:14.6]}
65. Rh4 {[%clk 0:01:14.7]} 65... Rf7 {[%clk 0:00:14.1]} 66. Kc4 {[%clk
0:01:14.8]} 66... Rg7 {[%clk 0:00:13.8]} 67. Rh5 {[%clk 0:01:14.3]} 67... Rf7
{[%clk 0:00:14]} 68. Kd5 {[%clk 0:01:14.7]} 68... Rg7 {[%clk 0:00:14.4]} 69. Rh6
{[%clk 0:01:14.4]} 69... Rg5+ {[%clk 0:00:14.1]} 70. Ke6 {[%clk 0:01:14.2]}
70... Rg7 {[%clk 0:00:14.2]} 71. Rf6 {[%clk 0:01:14]} 71... Rd7 {[%clk 0:00:14]}
72. Ke5 {[%clk 0:01:11.3]} 72... Re7+ {[%clk 0:00:13.8]} 73. Re6 {[%clk
0:01:11.6]} 73... Rd7 {[%clk 0:00:14.1]} 74. Kf6 {[%clk 0:01:11.6]} 74... Rd1
{[%clk 0:00:11.1]} 75. Re7+ {[%clk 0:01:10.8]} 75... Kb8 {[%clk 0:00:11.3]} 76.
Re4 {[%clk 0:01:11]} 76... Rd5 {[%clk 0:00:10.9]} 77. Ke7 {[%clk 0:01:10.4]}
77... Rd3 {[%clk 0:00:10.1]} 78. Rc4 {[%clk 0:01:10.1]} 78... Kb7 {[%clk
0:00:09.9]} 79. Ke6 {[%clk 0:01:09.9]} 79... Rd2 {[%clk 0:00:09.9]} 80. Ke5
{[%clk 0:01:10.3]} 80... Rd3 {[%clk 0:00:10.3]} 81. Rd4 {[%clk 0:01:10.5]} 81...
Rc3 {[%clk 0:00:10.1]} 82. Kd6 {[%clk 0:01:10.5]} 82... Rc2 {[%clk 0:00:09.6]}
83. Kd7 {[%clk 0:01:10.7]} 83... Rc1 {[%clk 0:00:09.9]} 84. Kd8 {[%clk
0:01:10.7]} 84... Rc2 {[%clk 0:00:10.2]} 85. Rd7+ {[%clk 0:01:10.8]} 85... Kb8
{[%clk 0:00:10.3]} 86. Rd4 {[%clk 0:01:09]} 86... Kb7 {[%clk 0:00:10]} 87. Ke7
{[%clk 0:01:09.5]} 87... Rc1 {[%clk 0:00:09.4]} 88. Kd6 {[%clk 0:01:09.9]} 88...
Kb8 {[%clk 0:00:09.8]} 89. Re4 {[%clk 0:01:09.9]} 89... Rd1+ {[%clk 0:00:09.9]}
90. Kc6 {[%clk 0:01:09.3]} 90... Rc1+ {[%clk 0:00:10.2]} 91. Kd5 {[%clk
0:01:09.4]} 91... Rd1+ {[%clk 0:00:10.7]} 92. Rd4 {[%clk 0:01:10]} 92... Rc1
{[%clk 0:00:10.8]} 93. Rc4 {[%clk 0:01:10.1]} 93... Rd1+ {[%clk 0:00:10.8]} 94.
Kc6 {[%clk 0:01:10.4]} 94... Rh1 {[%clk 0:00:09.8]} 95. Rd4 {[%clk 0:01:10.2]}
95... Rh6+ {[%clk 0:00:09.6]} 96. Rd6 {[%clk 0:01:10]} 96... Rh8 {[%clk
0:00:10.4]} 97. Kd7 {[%clk 0:01:08.5]} 97... Rc8 {[%clk 0:00:10]} 98. Re6 {[%clk
0:01:08.1]} 98... Rc7+ {[%clk 0:00:09.6]} 99. Kd6 {[%clk 0:01:07.9]} 99... Rc4
{[%clk 0:00:10]} 100. Re8+ {[%clk 0:01:06.9]} 100... Kb7 {[%clk 0:00:10.4]} 101.
Re7+ {[%clk 0:01:06.7]} 101... Kb8 {[%clk 0:00:10.8]} 102. a5 {[%clk 0:01:06]}
102... bxa5 {[%clk 0:00:10.6]} 103. Rf7 {[%clk 0:01:05.7]} 103... a4 {[%clk
0:00:10.3]} 104. Kd5 {[%clk 0:01:06.3]} 104... Rh4 {[%clk 0:00:09.9]} 105. Re7
{[%clk 0:01:03.6]} 105... a3 {[%clk 0:00:09.4]} 106. Re2 {[%clk 0:01:03.2]}
106... Rh3 {[%clk 0:00:08.6]} 107. Kc6 {[%clk 0:01:01.7]} 107... Rc3+ {[%clk
0:00:07.8]} 108. Kd5 {[%clk 0:01:01.7]} 108... Kb7 {[%clk 0:00:08.2]} 109. Kd4
{[%clk 0:01:02.2]} 109... Rh3 {[%clk 0:00:07.8]} 110. Re6 {[%clk 0:00:59.8]}
110... a2 {[%clk 0:00:07.1]} 111. Ra6 {[%clk 0:01:00]} 111... Rh2 {[%clk
0:00:06.3]} 112. Kc5 {[%clk 0:01:00.4]} 112... Rc2+ {[%clk 0:00:06.1]} 113. Kb4
{[%clk 0:01:00.5]} 113... Rb2+ {[%clk 0:00:05.7]} 114. Kc4 {[%clk 0:01:00.6]}
114... Rc2+ {[%clk 0:00:05.6]} 115. Kb4 {[%clk 0:01:00.6]} 115... Rh2 {[%clk
0:00:06.2]} 116. Kc5 {[%clk 0:01:00.4]} 116... Rh5+ {[%clk 0:00:06]} 117. Kb4
{[%clk 0:01:00.5]} 117... Rh4+ {[%clk 0:00:06.3]} 118. Kc5 {[%clk 0:01:00.2]}
118... Rh2 {[%clk 0:00:06.8]} 119. Kc4 {[%clk 0:01:00]} 119... Rg2 {[%clk
0:00:07.1]} 120. Kb4 {[%clk 0:00:59.8]} 120... Rf2 {[%clk 0:00:07.2]} 121. Kc4
{[%clk 0:00:59.8]} 121... Rc2+ {[%clk 0:00:07.2]} 122. Kb4 {[%clk 0:00:59.7]}
1/2-1/2

[Event "*** Titled Tuesday Blitz"]
[Site "Chess.com"]
[Date "2020.05.12"]
[Round "2"]
[White "grandcoach"]
[Black "Bajecny"]
[Result "1-0"]
[WhiteElo "2028"]
[BlackElo "2362"]
[TimeControl "180+1"]
[EndTime "10:12:22 PDT"]
[Termination "grandcoach won by resignation"]

1. e4 {[%clk 0:03:00.9]} 1... c5 {[%clk 0:02:57.9]} 2. b4 {[%clk 0:03:00]} 2...
b6 {[%clk 0:02:57.3]} 3. Bc4 {[%clk 0:02:55.7]} 3... Bb7 {[%clk 0:02:55.9]} 4.
Nf3 {[%clk 0:02:55.4]} 4... Bxe4 {[%clk 0:02:54.6]} 5. Bxf7+ {[%clk 0:02:52.1]}
5... Kxf7 {[%clk 0:02:55.1]} 6. Ng5+ {[%clk 0:02:52.5]} 6... Ke8 {[%clk
0:02:55.5]} 7. Nxe4 {[%clk 0:02:53.4]} 7... d5 {[%clk 0:02:55.1]} 8. Ng5 {[%clk
0:02:42.7]} 8... e5 {[%clk 0:02:50.3]} 9. O-O {[%clk 0:02:29.2]} 9... Qxg5
{[%clk 0:02:48.5]} 10. d4 {[%clk 0:02:26]} 10... cxd4 {[%clk 0:02:44.9]} 11.
Bxg5 {[%clk 0:02:24.7]} 1-0

[Event "*** Titled Tuesday Blitz"]
[Site "Chess.com"]
[Date "2020.05.12"]
[Round "2"]
[White "AlanZhang"]
[Black "guillembaches"]
[Result "0-1"]
[WhiteElo "2157"]
[BlackElo "2415"]
[TimeControl "180+1"]
[EndTime "10:12:45 PDT"]
[Termination "guillembaches won by resignation"]

1. e4 {[%clk 0:03:00.9]} 1... c5 {[%clk 0:02:59.7]} 2. Nf3 {[%clk 0:03:01.3]}
2... d6 {[%clk 0:03:00.2]} 3. d4 {[%clk 0:03:01.8]} 3... cxd4 {[%clk 0:03:01.1]}
4. Nxd4 {[%clk 0:03:02.4]} 4... Nf6 {[%clk 0:03:01.6]} 5. Nc3 {[%clk 0:03:02.8]}
5... Nc6 {[%clk 0:03:02]} 6. Bc4 {[%clk 0:03:01.7]} 6... Bd7 {[%clk 0:02:59.2]}
7. Be3 {[%clk 0:02:59.4]} 7... Ng4 {[%clk 0:02:57.8]} 8. Bg5 {[%clk 0:02:54.9]}
8... Qb6 {[%clk 0:02:51.8]} 9. Be3 {[%clk 0:02:18]} 9... Nxe3 {[%clk 0:02:39]}
10. fxe3 {[%clk 0:02:18.9]} 10... Qxb2 {[%clk 0:02:38.8]} 11. Nce2 {[%clk
0:02:12.8]} 11... Qb4+ {[%clk 0:02:33.1]} 0-1

[Event "*** Titled Tuesday Blitz"]
[Site "Chess.com"]
[Date "2020.05.12"]
[Round "2"]
[White "atalz0"]
[Black "Chuchofrio1"]
[Result "1-0"]
[WhiteElo "2463"]
[BlackElo "2238"]
[TimeControl "180+1"]
[EndTime "10:13:10 PDT"]
[Termination "atalz0 won by resignation"]

1. d4 {[%clk 0:03:00.9]} 1... f5 {[%clk 0:02:59]} 2. g3 {[%clk 0:03:00.4]} 2...
Nf6 {[%clk 0:02:58.1]} 3. Bg2 {[%clk 0:03:00.2]} 3... d6 {[%clk 0:02:57.4]} 4.
d5 {[%clk 0:02:57.4]} 4... g6 {[%clk 0:02:56]} 5. Nh3 {[%clk 0:02:57]} 5... Bg7
{[%clk 0:02:56.1]} 6. Nf4 {[%clk 0:02:56.4]} 6... O-O {[%clk 0:02:56.1]} 7. h4
{[%clk 0:02:53.5]} 7... Qe8 {[%clk 0:02:53.9]} 8. h5 {[%clk 0:02:51.6]} 8... g5
{[%clk 0:02:52.8]} 9. h6 {[%clk 0:02:51.7]} 9... Bh8 {[%clk 0:02:49.9]} 10. Ne6
{[%clk 0:02:51.7]} 10... Bxe6 {[%clk 0:02:49.3]} 11. dxe6 {[%clk 0:02:52.6]}
11... Qg6 {[%clk 0:02:48]} 12. Bxb7 {[%clk 0:02:49.8]} 12... Ne4 {[%clk
0:02:36.6]} 13. Bxa8 {[%clk 0:02:42.2]} 13... Qxe6 {[%clk 0:02:36.7]} 14. Bd5
{[%clk 0:02:39.2]} 14... Qxd5 {[%clk 0:02:31.2]} 15. Qxd5+ {[%clk 0:02:36.6]}
15... Rf7 {[%clk 0:02:30.8]} 16. Rh5 {[%clk 0:02:14.6]} 16... Nc6 {[%clk
0:02:25.1]} 17. Qxc6 {[%clk 0:02:10.5]} 1-0

[Event "*** Titled Tuesday Blitz"]
[Site "Chess.com"]
[Date "2020.05.12"]
[Round "2"]
[White "tylityli"]
[Black "Biranidun"]
[Result "0-1"]
[WhiteElo "2326"]
[BlackElo "2670"]
[TimeControl "180+1"]
[EndTime "10:13:24 PDT"]
[Termination "Biranidun won by resignation"]

1. e4 {[%clk 0:03:00.9]} 1... c5 {[%clk 0:02:59.9]} 2. Nf3 {[%clk 0:02:59.5]}
2... d6 {[%clk 0:03:00.5]} 3. d4 {[%clk 0:02:59.3]} 3... cxd4 {[%clk 0:03:01.4]}
4. Nxd4 {[%clk 0:02:59.8]} 4... Nf6 {[%clk 0:03:02.1]} 5. Nc3 {[%clk 0:02:59.2]}
5... a6 {[%clk 0:03:02.9]} 6. Be2 {[%clk 0:02:59.2]} 6... e5 {[%clk 0:03:02.9]}
7. Nb3 {[%clk 0:02:58.8]} 7... Be7 {[%clk 0:03:01]} 8. O-O {[%clk 0:02:53.9]}
8... O-O {[%clk 0:02:59.3]} 9. Be3 {[%clk 0:02:53.5]} 9... Be6 {[%clk
0:02:54.8]} 10. f4 {[%clk 0:02:53.1]} 10... exf4 {[%clk 0:02:55.4]} 11. Bxf4
{[%clk 0:02:53]} 11... Nc6 {[%clk 0:02:54]} 12. Nd4 {[%clk 0:02:51.8]} 12...
Nxd4 {[%clk 0:02:19.7]} 13. Qxd4 {[%clk 0:02:52.7]} 13... Rc8 {[%clk 0:02:20.2]}
14. Rad1 {[%clk 0:02:37.1]} 14... d5 {[%clk 0:02:20]} 15. e5 {[%clk 0:02:35.1]}
15... Bc5 {[%clk 0:02:19.8]} 16. exf6 {[%clk 0:02:18.4]} 16... Bxd4+ {[%clk
0:02:19.6]} 17. Rxd4 {[%clk 0:02:18]} 17... Qxf6 {[%clk 0:02:19.1]} 18. Be3
{[%clk 0:02:15.6]} 18... Qe5 {[%clk 0:02:18.6]} 19. Bf2 {[%clk 0:02:14.3]} 19...
Rxc3 {[%clk 0:02:16.3]} 0-1

[Event "*** Titled Tuesday Blitz"]
[Site "Chess.com"]
[Date "2020.05.12"]
[Round "2"]
[White "albi1999"]
[Black "Indianlad"]
[Result "0-1"]
[WhiteElo "2567"]
[BlackElo "2940"]
[TimeControl "180+1"]
[EndTime "10:13:48 PDT"]
[Termination "Indianlad won by resignation"]

1. d4 {[%clk 0:03:00.9]} 1... Nf6 {[%clk 0:03:00.3]} 2. c4 {[%clk 0:03:00.2]}
2... e6 {[%clk 0:02:59.9]} 3. Nf3 {[%clk 0:02:52.3]} 3... Nc6 {[%clk 0:03:00]}
4. g3 {[%clk 0:02:51]} 4... d5 {[%clk 0:02:56.8]} 5. Bg2 {[%clk 0:02:51]} 5...
dxc4 {[%clk 0:02:56.2]} 6. Qa4 {[%clk 0:02:50.7]} 6... Bb4+ {[%clk 0:02:52.9]}
7. Bd2 {[%clk 0:02:51.1]} 7... a5 {[%clk 0:02:52.9]} 8. a3 {[%clk 0:02:41.8]}
8... Bd6 {[%clk 0:02:53]} 9. Qxc4 {[%clk 0:02:39.4]} 9... O-O {[%clk 0:02:49.7]}
10. O-O {[%clk 0:02:19.5]} 10... e5 {[%clk 0:02:49.7]} 11. dxe5 {[%clk
0:02:20.4]} 11... Nxe5 {[%clk 0:02:49.6]} 12. Nxe5 {[%clk 0:02:20.8]} 12... Bxe5
{[%clk 0:02:50.5]} 13. Bc3 {[%clk 0:02:21]} 13... Qe7 {[%clk 0:02:49.9]} 14.
Bxe5 {[%clk 0:02:17.8]} 14... Qxe5 {[%clk 0:02:49.8]} 15. Nc3 {[%clk 0:02:18.3]}
15... c6 {[%clk 0:02:48.1]} 16. Rad1 {[%clk 0:02:15.8]} 16... Be6 {[%clk
0:02:48.1]} 17. Qd4 {[%clk 0:02:14.9]} 17... Qxd4 {[%clk 0:02:48.3]} 18. Rxd4
{[%clk 0:02:15.8]} 18... Bb3 {[%clk 0:02:47.5]} 19. e3 {[%clk 0:01:54.6]} 19...
Rfd8 {[%clk 0:02:47]} 20. Re1 {[%clk 0:01:52.5]} 20... Rxd4 {[%clk 0:02:44.6]}
21. exd4 {[%clk 0:01:53.4]} 21... Kf8 {[%clk 0:02:45.2]} 22. Re5 {[%clk
0:01:50.5]} 22... a4 {[%clk 0:02:44]} 23. d5 {[%clk 0:01:44.6]} 23... cxd5
{[%clk 0:02:44.2]} 24. Nxd5 {[%clk 0:01:43.4]} 24... Bxd5 {[%clk 0:02:43.8]} 25.
Bxd5 {[%clk 0:01:44.3]} 25... Ra5 {[%clk 0:02:44.4]} 0-1

[Event "*** Titled Tuesday Blitz"]
[Site "Chess.com"]
[Date "2020.05.12"]
[Round "2"]
[White "SHIVACalypso"]
[Black "SirMittensofMittensville"]
[Result "0-1"]
[WhiteElo "2296"]
[BlackElo "2567"]
[TimeControl "180+1"]
[EndTime "10:14:00 PDT"]
[Termination "SirMittensofMittensville won by resignation"]

1. Nf3 {[%clk 0:03:00.9]} 1... e6 {[%clk 0:02:59.7]} 2. c4 {[%clk 0:03:01]} 2...
Nf6 {[%clk 0:03:00.6]} 3. g3 {[%clk 0:03:01]} 3... d5 {[%clk 0:03:01.5]} 4. Bg2
{[%clk 0:03:01.4]} 4... dxc4 {[%clk 0:03:02.4]} 5. O-O {[%clk 0:03:01.7]} 5...
a6 {[%clk 0:03:03.1]} 6. a4 {[%clk 0:03:00.8]} 6... Nc6 {[%clk 0:03:02.9]} 7.
Na3 {[%clk 0:02:59.7]} 7... Bxa3 {[%clk 0:03:03.3]} 8. Rxa3 {[%clk 0:02:59.3]}
8... e5 {[%clk 0:03:03.5]} 9. Qc2 {[%clk 0:02:58.8]} 9... Be6 {[%clk 0:03:01.2]}
10. Ng5 {[%clk 0:02:57.6]} 10... Bd5 {[%clk 0:03:00.3]} 11. e4 {[%clk
0:02:49.1]} 11... Nd4 {[%clk 0:02:59.6]} 12. Qd1 {[%clk 0:02:48.9]} 12... Bc6
{[%clk 0:02:58.9]} 13. d3 {[%clk 0:02:40]} 13... h6 {[%clk 0:02:53.6]} 14. Nf3
{[%clk 0:02:39.7]} 14... Nxf3+ {[%clk 0:02:46]} 15. Bxf3 {[%clk 0:02:37.6]}
15... cxd3 {[%clk 0:02:42.3]} 16. Rxd3 {[%clk 0:02:37.6]} 16... Qe7 {[%clk
0:02:42.8]} 17. Qe2 {[%clk 0:02:29.9]} 17... Bxa4 {[%clk 0:02:40.5]} 18. Be3
{[%clk 0:02:19.9]} 18... Bb5 {[%clk 0:02:39.3]} 19. Qc2 {[%clk 0:02:11.8]} 19...
Bxd3 {[%clk 0:02:38.6]} 20. Qxd3 {[%clk 0:02:12.7]} 20... O-O {[%clk 0:02:37.5]}
21. Rc1 {[%clk 0:02:11]} 21... Rfd8 {[%clk 0:02:36.9]} 22. Qc3 {[%clk
0:02:10.2]} 22... c6 {[%clk 0:02:31.7]} 23. Bc5 {[%clk 0:02:09.6]} 23... Qe6
{[%clk 0:02:28.5]} 24. Qb4 {[%clk 0:02:07.7]} 24... Rd7 {[%clk 0:02:26.7]} 25.
Kg2 {[%clk 0:02:03.6]} 25... Rad8 {[%clk 0:02:26.6]} 26. Qb6 {[%clk 0:02:02.6]}
26... h5 {[%clk 0:02:18.7]} 27. h4 {[%clk 0:01:56.2]} 27... Ng4 {[%clk
0:02:18.5]} 0-1

[Event "*** Titled Tuesday Blitz"]
[Site "Chess.com"]
[Date "2020.05.12"]
[Round "2"]
[White "Vaathi_Coming"]
[Black "krstulov_alex"]
[Result "1-0"]
[WhiteElo "2854"]
[BlackElo "2547"]
[TimeControl "180+1"]
[EndTime "10:14:05 PDT"]
[Termination "Vaathi_Coming won by resignation"]

1. e4 {[%clk 0:03:00.9]} 1... c6 {[%clk 0:02:59.4]} 2. d4 {[%clk 0:02:59.4]}
2... d5 {[%clk 0:02:59.7]} 3. e5 {[%clk 0:02:59.5]} 3... c5 {[%clk 0:03:00.1]}
4. dxc5 {[%clk 0:02:59.3]} 4... e6 {[%clk 0:03:00.7]} 5. a3 {[%clk 0:02:56.2]}
5... Bxc5 {[%clk 0:03:00.8]} 6. Nf3 {[%clk 0:02:56.4]} 6... Ne7 {[%clk
0:03:00.5]} 7. b4 {[%clk 0:02:56.7]} 7... Bb6 {[%clk 0:03:01.1]} 8. Bb2 {[%clk
0:02:57.2]} 8... O-O {[%clk 0:02:54.2]} 9. Bd3 {[%clk 0:02:56.2]} 9... Ng6
{[%clk 0:02:51.7]} 10. O-O {[%clk 0:02:51.3]} 10... a5 {[%clk 0:02:51.8]} 11.
Nbd2 {[%clk 0:02:49.7]} 11... axb4 {[%clk 0:02:44.3]} 12. axb4 {[%clk
0:02:50.6]} 12... Rxa1 {[%clk 0:02:44.7]} 13. Qxa1 {[%clk 0:02:50.9]} 13... Nc6
{[%clk 0:02:45.3]} 14. b5 {[%clk 0:02:45.7]} 14... Nb4 {[%clk 0:02:40.6]} 15.
Bxg6 {[%clk 0:02:42.7]} 15... fxg6 {[%clk 0:02:41.5]} 16. Qa4 {[%clk 0:02:35.3]}
16... Qe7 {[%clk 0:02:05.5]} 17. Ba3 {[%clk 0:02:18.2]} 17... Bc5 {[%clk
0:02:05.6]} 18. Nb3 {[%clk 0:02:16.8]} 18... Nd3 {[%clk 0:02:05.7]} 19. Nxc5
{[%clk 0:02:14.1]} 19... Nxc5 {[%clk 0:02:06.6]} 20. Qa7 {[%clk 0:02:14.2]}
20... Rxf3 {[%clk 0:02:06.4]} 21. Bxc5 {[%clk 0:02:07.2]} 1-0

[Event "*** Titled Tuesday Blitz"]
[Site "Chess.com"]
[Date "2020.05.12"]
[Round "2"]
[White "fish7728"]
[Black "Loiacono_Antonio"]
[Result "0-1"]
[WhiteElo "2042"]
[BlackElo "2386"]
[TimeControl "180+1"]
[EndTime "10:14:18 PDT"]
[Termination "Loiacono_Antonio won by resignation"]

1. d4 {[%clk 0:03:00.9]} 1... d5 {[%clk 0:02:57.5]} 2. c4 {[%clk 0:03:01.2]}
2... c6 {[%clk 0:02:57.1]} 3. Nc3 {[%clk 0:03:01.2]} 3... Nf6 {[%clk 0:02:56.8]}
4. cxd5 {[%clk 0:03:01]} 4... cxd5 {[%clk 0:02:56.4]} 5. Bf4 {[%clk 0:03:01]}
5... Nc6 {[%clk 0:02:56.1]} 6. e3 {[%clk 0:02:59.1]} 6... Bg4 {[%clk 0:02:47.6]}
7. f3 {[%clk 0:02:57.7]} 7... Bd7 {[%clk 0:02:44.3]} 8. Bd3 {[%clk 0:02:55.3]}
8... e6 {[%clk 0:02:41.2]} 9. g4 {[%clk 0:02:54.4]} 9... a6 {[%clk 0:02:38.2]}
10. Nge2 {[%clk 0:02:52.2]} 10... Be7 {[%clk 0:02:37.4]} 11. Ng3 {[%clk
0:02:51.3]} 11... h6 {[%clk 0:02:34.5]} 12. h4 {[%clk 0:02:49.7]} 12... Rc8
{[%clk 0:02:30.4]} 13. Kf2 {[%clk 0:02:47.7]} 13... Qb6 {[%clk 0:02:26.7]} 14.
Qd2 {[%clk 0:02:24.4]} 14... Na5 {[%clk 0:02:22.9]} 15. g5 {[%clk 0:02:20.9]}
15... Ng8 {[%clk 0:02:15.6]} 16. Nh5 {[%clk 0:02:14]} 16... g6 {[%clk
0:02:12.4]} 17. Nf6+ {[%clk 0:01:59]} 17... Nxf6 {[%clk 0:02:10.7]} 18. gxf6
{[%clk 0:01:58.4]} 18... Bxf6 {[%clk 0:02:08.5]} 19. Rag1 {[%clk 0:01:42.6]}
19... Nc4 {[%clk 0:02:03.5]} 20. b3 {[%clk 0:01:38.2]} 20... Nxd2 {[%clk
0:02:02.9]} 0-1

[Event "*** Titled Tuesday Blitz"]
[Site "Chess.com"]
[Date "2020.05.12"]
[Round "2"]
[White "Yanidze"]
[Black "CaspiIsrael"]
[Result "0-1"]
[WhiteElo "2357"]
[BlackElo "2640"]
[TimeControl "180+1"]
[EndTime "10:14:21 PDT"]
[Termination "CaspiIsrael won by resignation"]

1. d4 {[%clk 0:03:00.9]} 1... f5 {[%clk 0:02:58.2]} 2. Nf3 {[%clk 0:03:00.5]}
2... Nf6 {[%clk 0:02:57.2]} 3. g3 {[%clk 0:03:00.6]} 3... g6 {[%clk 0:02:56.9]}
4. Bg2 {[%clk 0:03:01.1]} 4... Bg7 {[%clk 0:02:57.4]} 5. O-O {[%clk 0:03:01.5]}
5... O-O {[%clk 0:02:58]} 6. c4 {[%clk 0:03:01.5]} 6... d6 {[%clk 0:02:58.5]} 7.
b3 {[%clk 0:03:01.9]} 7... e5 {[%clk 0:02:54.1]} 8. dxe5 {[%clk 0:03:01.5]} 8...
dxe5 {[%clk 0:02:55]} 9. Ba3 {[%clk 0:03:02]} 9... Re8 {[%clk 0:02:49.1]} 10.
Nc3 {[%clk 0:02:49.2]} 10... e4 {[%clk 0:02:42.6]} 11. Ne1 {[%clk 0:02:48.9]}
11... Be6 {[%clk 0:02:24.6]} 12. Nc2 {[%clk 0:02:41.3]} 12... Nc6 {[%clk
0:02:23.9]} 13. Nb5 {[%clk 0:02:38.2]} 13... Qc8 {[%clk 0:02:14.6]} 14. e3
{[%clk 0:02:25.2]} 14... Bf7 {[%clk 0:02:05.8]} 15. Qe2 {[%clk 0:02:23.6]} 15...
a6 {[%clk 0:02:04.7]} 16. Nbd4 {[%clk 0:02:23.4]} 16... Ne5 {[%clk 0:02:05.2]}
17. Rad1 {[%clk 0:02:21.4]} 17... c5 {[%clk 0:02:03.2]} 18. f4 {[%clk
0:02:08.3]} 18... Ned7 {[%clk 0:01:52]} 0-1